[Event "*** Titled Tuesday Blitz"]
[Site "Chess.com"]
[Date "2018.11.06"]
[Round "1"]
[White "MFBerna"]
[Black "severomorskij"]
[Result "0-1"]
[WhiteElo "2347"]
[BlackElo "2715"]
[TimeControl "180+2"]
[EndTime "13:07:06 PST"]
[Termination "severomorskij won by checkmate"]

1. e4 {[%clk 0:03:01.9]} 1... c5 {[%clk 0:02:58.8]} 2. Nf3 {[%clk 0:03:02.8]}
2... Nc6 {[%clk 0:02:59.3]} 3. d4 {[%clk 0:03:02.3]} 3... cxd4 {[%clk
0:02:59.9]} 4. Nxd4 {[%clk 0:03:04.2]} 4... Nf6 {[%clk 0:03:01.2]} 5. Nc3 {[%clk
0:03:05.3]} 5... e5 {[%clk 0:03:02.6]} 6. Ndb5 {[%clk 0:03:06]} 6... d6 {[%clk
0:03:03.9]} 7. Bg5 {[%clk 0:03:07.2]} 7... a6 {[%clk 0:03:04.3]} 8. Na3 {[%clk
0:03:08.7]} 8... b5 {[%clk 0:03:05.9]} 9. Nd5 {[%clk 0:03:10.3]} 9... Be7 {[%clk
0:03:07.1]} 10. Bxf6 {[%clk 0:03:11.8]} 10... Bxf6 {[%clk 0:03:08.6]} 11. c4
{[%clk 0:03:13.4]} 11... b4 {[%clk 0:03:09.3]} 12. Nc2 {[%clk 0:03:15]} 12...
O-O {[%clk 0:03:10.4]} 13. g3 {[%clk 0:03:15.7]} 13... Bg5 {[%clk 0:03:07.7]}
14. h4 {[%clk 0:03:16]} 14... Bh6 {[%clk 0:03:08.7]} 15. Bh3 {[%clk 0:03:17.5]}
15... Be6 {[%clk 0:03:04]} 16. Kf1 {[%clk 0:03:18.4]} 16... a5 {[%clk
0:03:02.4]} 17. Kg2 {[%clk 0:03:17.7]} 17... Ra7 {[%clk 0:02:58.5]} 18. b3
{[%clk 0:03:18.2]} 18... Nb8 {[%clk 0:02:58.7]} 19. Qe2 {[%clk 0:03:09.8]} 19...
Nd7 {[%clk 0:02:59.3]} 20. Rad1 {[%clk 0:03:07.5]} 20... Nc5 {[%clk 0:03:00]}
21. f3 {[%clk 0:02:59]} 21... Kh8 {[%clk 0:02:45.3]} 22. Nde3 {[%clk 0:02:58.4]}
22... g6 {[%clk 0:02:41.7]} 23. h5 {[%clk 0:02:52]} 23... gxh5 {[%clk
0:02:26.4]} 24. Nf5 {[%clk 0:02:34.7]} 24... Qg5 {[%clk 0:02:20.3]} 25. Kf2
{[%clk 0:02:22.8]} 25... Rg8 {[%clk 0:02:14]} 26. Rdg1 {[%clk 0:02:17.4]} 26...
Bxf5 {[%clk 0:02:01.6]} 27. Bxf5 {[%clk 0:02:16.2]} 27... a4 {[%clk 0:02:02.8]}
28. Nxb4 {[%clk 0:01:42.7]} 28... axb3 {[%clk 0:02:02.8]} 29. axb3 {[%clk
0:01:43]} 29... Nxb3 {[%clk 0:02:02.3]} 30. Nd5 {[%clk 0:01:10.5]} 30... Nd4
{[%clk 0:01:59]} 31. Qb2 {[%clk 0:00:48.1]} 31... Rb7 {[%clk 0:01:40.8]} 32. Qa2
{[%clk 0:00:37]} 32... Rb3 {[%clk 0:01:39.3]} 33. f4 {[%clk 0:00:23.7]} 33...
exf4 {[%clk 0:01:40.3]} 34. Qa1 {[%clk 0:00:14.1]} 34... fxg3+ {[%clk
0:01:35.4]} 35. Kg2 {[%clk 0:00:15.6]} 35... Qd2+ {[%clk 0:01:31.1]} 36. Kh3
{[%clk 0:00:16.9]} 36... g2+ {[%clk 0:01:30]} 37. Kh4 {[%clk 0:00:12.6]} 37...
Qg5# {[%clk 0:01:29.3]} 0-1

[Event "*** Titled Tuesday Blitz"]
[Site "Chess.com"]
[Date "2018.11.06"]
[Round "1"]
[White "51616516516"]
[Black "grzechu96"]
[Result "1-0"]
[WhiteElo "2245"]
[BlackElo "2572"]
[TimeControl "180+2"]
[EndTime "13:07:11 PST"]
[Termination "51616516516 won by checkmate"]

1. d4 {[%clk 0:02:53]} 1... d5 {[%clk 0:03:00.7]} 2. c4 {[%clk 0:02:52.7]} 2...
e6 {[%clk 0:03:01]} 3. Nc3 {[%clk 0:02:52.9]} 3... c6 {[%clk 0:03:02.2]} 4. e4
{[%clk 0:02:53.1]} 4... dxe4 {[%clk 0:03:02.7]} 5. Nxe4 {[%clk 0:02:54]} 5...
Bb4+ {[%clk 0:03:04.1]} 6. Bd2 {[%clk 0:02:54.7]} 6... Qxd4 {[%clk 0:03:04.7]}
7. Bxb4 {[%clk 0:02:55.6]} 7... Qxe4+ {[%clk 0:03:06.1]} 8. Be2 {[%clk 0:02:56]}
8... Na6 {[%clk 0:02:57.3]} 9. Ba5 {[%clk 0:02:53]} 9... b6 {[%clk 0:02:56.3]}
10. Qd6 {[%clk 0:01:44.9]} 10... bxa5 {[%clk 0:02:57.1]} 11. Rd1 {[%clk
0:01:38.1]} 11... f6 {[%clk 0:02:58.4]} 12. f3 {[%clk 0:01:34.8]} 12... Qe3
{[%clk 0:02:59.7]} 13. Qxc6+ {[%clk 0:01:35]} 13... Kf7 {[%clk 0:03:01.2]} 14.
Qxa8 {[%clk 0:01:28.5]} 14... Ne7 {[%clk 0:03:02.5]} 15. Nh3 {[%clk 0:01:29.9]}
15... Nc5 {[%clk 0:02:32]} 16. Nf2 {[%clk 0:01:20]} 16... h5 {[%clk 0:02:03.6]}
17. Kf1 {[%clk 0:01:15.4]} 17... Na4 {[%clk 0:02:01.5]} 18. Nd3 {[%clk
0:01:09.3]} 18... Rd8 {[%clk 0:01:35]} 19. Ne5+ {[%clk 0:00:59.2]} 19... Qxe5
{[%clk 0:01:35.8]} 20. Rxd8 {[%clk 0:00:58.7]} 20... Qc7 {[%clk 0:01:07.1]} 21.
Rh8 {[%clk 0:00:42.6]} 21... Nxb2 {[%clk 0:01:05.6]} 22. Qe4 {[%clk 0:00:34]}
22... Qc5 {[%clk 0:01:04.8]} 23. Qh7 {[%clk 0:00:20.9]} 23... Ng6 {[%clk
0:00:38.9]} 24. Qg8+ {[%clk 0:00:21.2]} 24... Ke7 {[%clk 0:00:37.6]} 25. Qd8+
{[%clk 0:00:21.3]} 25... Kf7 {[%clk 0:00:38]} 26. Qe8# {[%clk 0:00:22.3]} 1-0

[Event "*** Titled Tuesday Blitz"]
[Site "Chess.com"]
[Date "2018.11.06"]
[Round "1"]
[White "Alexander_Donchenko"]
[Black "Godzillator"]
[Result "1-0"]
[WhiteElo "2740"]
[BlackElo "2380"]
[TimeControl "180+2"]
[EndTime "13:07:16 PST"]
[Termination "Alexander_Donchenko won by resignation"]

1. Nf3 {[%clk 0:03:01.9]} 1... d5 {[%clk 0:02:56.7]} 2. g3 {[%clk 0:03:02.6]}
2... c6 {[%clk 0:02:57.4]} 3. Bg2 {[%clk 0:03:03.4]} 3... Nf6 {[%clk 0:02:58.3]}
4. c4 {[%clk 0:03:03.7]} 4... Bg4 {[%clk 0:02:58.6]} 5. Ne5 {[%clk 0:03:04.2]}
5... Be6 {[%clk 0:02:59.2]} 6. cxd5 {[%clk 0:03:04.9]} 6... Bxd5 {[%clk
0:03:00.4]} 7. Nf3 {[%clk 0:03:06.1]} 7... c5 {[%clk 0:03:00.8]} 8. Nc3 {[%clk
0:03:07.4]} 8... Bc6 {[%clk 0:03:01.8]} 9. O-O {[%clk 0:03:07.4]} 9... e6 {[%clk
0:03:01.5]} 10. d3 {[%clk 0:03:08.6]} 10... Be7 {[%clk 0:03:02.1]} 11. e4 {[%clk
0:03:09.3]} 11... O-O {[%clk 0:03:02.5]} 12. Qe2 {[%clk 0:03:10]} 12... b5
{[%clk 0:03:02.1]} 13. Rd1 {[%clk 0:03:08.5]} 13... b4 {[%clk 0:03:02.4]} 14.
Nb1 {[%clk 0:03:09.2]} 14... Qb6 {[%clk 0:02:58.1]} 15. Nbd2 {[%clk 0:03:02]}
15... Bb5 {[%clk 0:02:46.1]} 16. Nc4 {[%clk 0:02:51.7]} 16... Qa6 {[%clk
0:02:46.2]} 17. b3 {[%clk 0:02:45.2]} 17... Nc6 {[%clk 0:02:42.8]} 18. Bb2
{[%clk 0:02:45.1]} 18... Rad8 {[%clk 0:02:41.5]} 19. a3 {[%clk 0:02:39.1]} 19...
Qb7 {[%clk 0:02:34.5]} 20. axb4 {[%clk 0:02:29.3]} 20... cxb4 {[%clk 0:02:30.1]}
21. h3 {[%clk 0:01:56.2]} 21... Nd7 {[%clk 0:02:20.7]} 22. Qe3 {[%clk
0:01:46.9]} 22... a6 {[%clk 0:02:17.6]} 23. d4 {[%clk 0:01:43]} 23... Rfe8
{[%clk 0:02:00.7]} 24. d5 {[%clk 0:01:37]} 24... exd5 {[%clk 0:02:00.1]} 25.
exd5 {[%clk 0:01:38.3]} 25... Ncb8 {[%clk 0:01:54.8]} 26. Re1 {[%clk 0:01:24.1]}
26... Nc5 {[%clk 0:01:48.8]} 27. d6 {[%clk 0:01:10]} 27... Bxd6 {[%clk
0:01:48.6]} 28. Nxd6 {[%clk 0:01:11]} 28... Rxe3 {[%clk 0:01:46.1]} 29. Nxb7
{[%clk 0:01:12.2]} 29... Rxe1+ {[%clk 0:01:46.8]} 30. Nxe1 {[%clk 0:01:13.9]}
30... Nxb7 {[%clk 0:01:47.2]} 31. Bxb7 {[%clk 0:01:15.6]} 31... Rd2 {[%clk
0:01:45.9]} 32. Be5 {[%clk 0:01:08.6]} 32... Nd7 {[%clk 0:01:45.4]} 33. Bf4
{[%clk 0:01:08.2]} 33... Rb2 {[%clk 0:01:45.4]} 34. Rd1 {[%clk 0:01:02.1]} 34...
g5 {[%clk 0:01:38]} 35. Bxg5 {[%clk 0:00:51.8]} 35... Rxb3 {[%clk 0:01:38.9]}
36. Nf3 {[%clk 0:00:44.5]} 36... Nc5 {[%clk 0:01:19.5]} 37. Nd4 {[%clk
0:00:42.9]} 37... Rb2 {[%clk 0:01:11.8]} 38. Nxb5 {[%clk 0:00:36.3]} 38... axb5
{[%clk 0:01:09.9]} 39. Bf6 {[%clk 0:00:35.2]} 39... Nxb7 {[%clk 0:01:10.3]} 1-0

[Event "*** Titled Tuesday Blitz"]
[Site "Chess.com"]
[Date "2018.11.06"]
[Round "1"]
[White "chessdjw"]
[Black "ZeroRealtorFade"]
[Result "1-0"]
[WhiteElo "2587"]
[BlackElo "2224"]
[TimeControl "180+2"]
[EndTime "13:07:38 PST"]
[Termination "chessdjw won by resignation"]

1. d4 {[%clk 0:03:01.1]} 1... Nf6 {[%clk 0:03:00.9]} 2. c4 {[%clk 0:03:02.2]}
2... c5 {[%clk 0:03:02.2]} 3. d5 {[%clk 0:03:03]} 3... b5 {[%clk 0:03:03.3]} 4.
cxb5 {[%clk 0:03:04.9]} 4... a6 {[%clk 0:03:04.1]} 5. bxa6 {[%clk 0:03:06.8]}
5... g6 {[%clk 0:03:04.7]} 6. Nc3 {[%clk 0:03:08.7]} 6... Bg7 {[%clk 0:03:05.3]}
7. Nf3 {[%clk 0:03:10.6]} 7... O-O {[%clk 0:03:06.3]} 8. a7 {[%clk 0:03:12.1]}
8... Rxa7 {[%clk 0:03:07.1]} 9. e4 {[%clk 0:03:13.6]} 9... d6 {[%clk 0:03:08.3]}
10. a4 {[%clk 0:03:12.5]} 10... Ba6 {[%clk 0:03:05]} 11. Nb5 {[%clk 0:03:12.3]}
11... Bxb5 {[%clk 0:02:50.3]} 12. Bxb5 {[%clk 0:03:14.2]} 12... Nxe4 {[%clk
0:02:47.5]} 13. O-O {[%clk 0:03:15.7]} 13... Nf6 {[%clk 0:02:10.9]} 14. Re1
{[%clk 0:03:15.4]} 14... Na6 {[%clk 0:01:59.4]} 15. Bc4 {[%clk 0:02:39.3]} 15...
Nb4 {[%clk 0:01:53.1]} 16. Bg5 {[%clk 0:02:25.8]} 16... Qa8 {[%clk 0:01:41.3]}
17. Bxf6 {[%clk 0:02:21.5]} 17... Bxf6 {[%clk 0:01:40.3]} 18. Re2 {[%clk
0:02:23]} 18... Rb8 {[%clk 0:01:27]} 19. Ra3 {[%clk 0:02:21.3]} 19... Qb7 {[%clk
0:00:51.7]} 20. Rae3 {[%clk 0:02:11.1]} 20... Qd7 {[%clk 0:00:48.2]} 21. b3
{[%clk 0:02:06.7]} 21... Qf5 {[%clk 0:00:42.9]} 22. h4 {[%clk 0:01:46.4]} 22...
h5 {[%clk 0:00:40.9]} 23. g3 {[%clk 0:01:47.6]} 23... Kg7 {[%clk 0:00:25.5]} 24.
Kg2 {[%clk 0:01:48.7]} 24... Kg8 {[%clk 0:00:25.8]} 25. Re4 {[%clk 0:01:49.2]}
25... Kg7 {[%clk 0:00:24]} 26. Rf4 {[%clk 0:01:49.7]} 26... Qd7 {[%clk
0:00:19.2]} 27. Ng5 {[%clk 0:01:49.6]} 27... Rf8 {[%clk 0:00:15.8]} 28. Qe1
{[%clk 0:01:42.4]} 28... Be5 {[%clk 0:00:14.4]} 29. Rxe5 {[%clk 0:01:42.9]}
29... dxe5 {[%clk 0:00:15.2]} 30. Qxe5+ {[%clk 0:01:44.4]} 30... Kg8 {[%clk
0:00:13.2]} 31. Ne6 {[%clk 0:01:33.9]} 31... fxe6 {[%clk 0:00:08.7]} 32. Rxf8+
{[%clk 0:01:34.9]} 32... Kxf8 {[%clk 0:00:09.8]} 33. Qh8+ {[%clk 0:01:36.4]}
33... Kf7 {[%clk 0:00:10.9]} 34. dxe6+ {[%clk 0:01:37.5]} 34... Qxe6 {[%clk
0:00:12.5]} 35. Qh7+ {[%clk 0:01:34.1]} 35... Kf6 {[%clk 0:00:12.2]} 36. Bxe6
{[%clk 0:01:35.2]} 36... Kxe6 {[%clk 0:00:13.4]} 37. Qxg6+ {[%clk 0:01:35.8]}
37... Kd7 {[%clk 0:00:13.8]} 38. Qxh5 {[%clk 0:01:37.4]} 38... Rc7 {[%clk
0:00:14.4]} 39. Qg4+ {[%clk 0:01:36.6]} 39... e6 {[%clk 0:00:15.2]} 40. h5
{[%clk 0:01:37.6]} 40... Nd5 {[%clk 0:00:16.2]} 41. h6 {[%clk 0:01:37.9]} 41...
Kd6 {[%clk 0:00:17.6]} 42. Qh4 {[%clk 0:01:37]} 42... Rh7 {[%clk 0:00:17.7]} 43.
Qd8+ {[%clk 0:01:37.2]} 43... Rd7 {[%clk 0:00:18.2]} 44. Qxd7+ {[%clk
0:01:33.5]} 44... Kxd7 {[%clk 0:00:19]} 45. h7 {[%clk 0:01:35.4]} 1-0

[Event "*** Titled Tuesday Blitz"]
[Site "Chess.com"]
[Date "2018.11.06"]
[Round "1"]
[White "Federtiu"]
[Black "Me_ch_an"]
[Result "1-0"]
[WhiteElo "2610"]
[BlackElo "2263"]
[TimeControl "180+2"]
[EndTime "13:07:39 PST"]
[Termination "Federtiu won on time"]

1. e4 {[%clk 0:03:01.4]} 1... c5 {[%clk 0:02:58]} 2. Nc3 {[%clk 0:03:01.4]} 2...
a6 {[%clk 0:02:57.1]} 3. Nge2 {[%clk 0:02:58.1]} 3... b5 {[%clk 0:02:57]} 4. d4
{[%clk 0:02:58.6]} 4... cxd4 {[%clk 0:02:57.2]} 5. Nxd4 {[%clk 0:03:00.5]} 5...
Bb7 {[%clk 0:02:57.8]} 6. Bd3 {[%clk 0:02:52.1]} 6... e6 {[%clk 0:02:58.2]} 7.
O-O {[%clk 0:02:52]} 7... Qc7 {[%clk 0:02:58.8]} 8. Kh1 {[%clk 0:02:46.2]} 8...
Nf6 {[%clk 0:02:55.7]} 9. Qe2 {[%clk 0:02:45.1]} 9... d6 {[%clk 0:02:55.4]} 10.
f4 {[%clk 0:02:45.2]} 10... Nc6 {[%clk 0:02:48.4]} 11. Nxc6 {[%clk 0:02:45.5]}
11... Bxc6 {[%clk 0:02:43.4]} 12. Bd2 {[%clk 0:02:46.8]} 12... Be7 {[%clk
0:02:41.8]} 13. Rae1 {[%clk 0:02:46.9]} 13... Nd7 {[%clk 0:02:16.8]} 14. e5
{[%clk 0:02:43.7]} 14... Bh4 {[%clk 0:01:40.8]} 15. f5 {[%clk 0:02:02.5]} 15...
Bxe1 {[%clk 0:01:24.4]} 16. fxe6 {[%clk 0:02:03.4]} 16... Nxe5 {[%clk
0:01:07.1]} 17. exf7+ {[%clk 0:02:01.7]} 17... Kf8 {[%clk 0:01:03.8]} 18. Qxe1
{[%clk 0:01:38]} 18... Nxf7 {[%clk 0:00:58.2]} 19. Qg3 {[%clk 0:01:17.4]} 19...
Re8 {[%clk 0:00:50.2]} 20. a4 {[%clk 0:01:03.6]} 20... Re6 {[%clk 0:00:28.7]}
21. axb5 {[%clk 0:01:02.6]} 21... axb5 {[%clk 0:00:30.6]} 22. Ne2 {[%clk
0:00:48.8]} 22... Rf6 {[%clk 0:00:24.4]} 23. Rxf6 {[%clk 0:00:49.5]} 23... gxf6
{[%clk 0:00:26]} 24. Nd4 {[%clk 0:00:51.4]} 24... Qb7 {[%clk 0:00:19.7]} 25. Nf5
{[%clk 0:00:43]} 25... Qa7 {[%clk 0:00:10.5]} 26. Qg7+ {[%clk 0:00:41.2]} 26...
Ke8 {[%clk 0:00:10.8]} 27. Nxd6+ {[%clk 0:00:37.4]} 27... Kd8 {[%clk 0:00:09]}
28. Nxf7+ {[%clk 0:00:37.4]} 28... Kc8 {[%clk 0:00:03.3]} 29. Nd6+ {[%clk
0:00:37.9]} 1-0

[Event "*** Titled Tuesday Blitz"]
[Site "Chess.com"]
[Date "2018.11.06"]
[Round "1"]
[White "olksuna"]
[Black "AsaHoffmann"]
[Result "1-0"]
[WhiteElo "2485"]
[BlackElo "1997"]
[TimeControl "180+2"]
[EndTime "13:07:42 PST"]
[Termination "olksuna won by resignation"]

1. c4 {[%clk 0:02:56.2]} 1... Nf6 {[%clk 0:02:59.3]} 2. g3 {[%clk 0:02:56.4]}
2... d6 {[%clk 0:02:58]} 3. Bg2 {[%clk 0:02:57.2]} 3... e5 {[%clk 0:02:58.5]} 4.
Nc3 {[%clk 0:02:58]} 4... c6 {[%clk 0:02:58.4]} 5. Nf3 {[%clk 0:02:58.3]} 5...
Be7 {[%clk 0:02:58.7]} 6. O-O {[%clk 0:02:59.1]} 6... O-O {[%clk 0:02:58.9]} 7.
d4 {[%clk 0:02:57.2]} 7... e4 {[%clk 0:02:59.1]} 8. Ng5 {[%clk 0:02:54.8]} 8...
d5 {[%clk 0:02:59.6]} 9. h4 {[%clk 0:02:48.8]} 9... h6 {[%clk 0:02:59.3]} 10.
Nh3 {[%clk 0:02:49.7]} 10... Bf5 {[%clk 0:02:55.7]} 11. cxd5 {[%clk 0:02:25.4]}
11... cxd5 {[%clk 0:02:55.3]} 12. Nf4 {[%clk 0:02:25.9]} 12... Nc6 {[%clk
0:02:49.1]} 13. e3 {[%clk 0:02:25.7]} 13... Qd7 {[%clk 0:02:49.5]} 14. Nh5
{[%clk 0:02:22.4]} 14... Bg4 {[%clk 0:02:47.9]} 15. Nxf6+ {[%clk 0:02:23]} 15...
Bxf6 {[%clk 0:02:48.6]} 16. Qb3 {[%clk 0:02:23.2]} 16... Rfd8 {[%clk 0:02:42.8]}
17. Bd2 {[%clk 0:02:04.6]} 17... g5 {[%clk 0:02:35.7]} 18. hxg5 {[%clk
0:02:04.4]} 18... hxg5 {[%clk 0:02:36.4]} 19. Na4 {[%clk 0:02:04.9]} 19... Rab8
{[%clk 0:02:34.5]} 20. Rac1 {[%clk 0:02:04.7]} 20... Bh3 {[%clk 0:02:31.6]} 21.
Nc5 {[%clk 0:02:04.8]} 21... Qg4 {[%clk 0:02:29.9]} 22. Qd1 {[%clk 0:02:00.1]}
22... Qf5 {[%clk 0:02:14.2]} 23. f4 {[%clk 0:01:50.9]} 23... Bxg2 {[%clk
0:02:12]} 24. Kxg2 {[%clk 0:01:51]} 24... g4 {[%clk 0:02:12.8]} 25. Rh1 {[%clk
0:01:48.1]} 25... Kg7 {[%clk 0:02:13]} 26. Qe2 {[%clk 0:01:39.9]} 26... Ne7
{[%clk 0:02:11.1]} 27. b4 {[%clk 0:01:34.4]} 27... b6 {[%clk 0:02:11.2]} 28. Nb3
{[%clk 0:01:34.3]} 28... Rh8 {[%clk 0:02:11.2]} 29. a4 {[%clk 0:01:32.6]} 29...
Ng6 {[%clk 0:02:10.4]} 30. Rxh8 {[%clk 0:01:12.3]} 30... Rxh8 {[%clk 0:02:09.5]}
31. Rh1 {[%clk 0:01:13.2]} 31... Rxh1 {[%clk 0:02:05.5]} 32. Kxh1 {[%clk
0:01:14.2]} 32... Ne7 {[%clk 0:02:03.8]} 33. Be1 {[%clk 0:01:09.1]} 33... Qh5+
{[%clk 0:01:58.9]} 34. Qh2 {[%clk 0:01:09.9]} 34... Qg6 {[%clk 0:01:57.8]} 35.
Kg1 {[%clk 0:01:08.9]} 35... Nf5 {[%clk 0:01:58.3]} 36. Bf2 {[%clk 0:01:09.6]}
36... Be7 {[%clk 0:01:58.5]} 37. b5 {[%clk 0:01:09.3]} 37... Qd6 {[%clk
0:01:59.1]} 38. Qh5 {[%clk 0:01:09]} 38... Nh6 {[%clk 0:01:57.1]} 39. Nc1 {[%clk
0:01:04.1]} 39... Bf6 {[%clk 0:01:55.5]} 40. Ne2 {[%clk 0:01:04.7]} 40... Qa3
{[%clk 0:01:54.3]} 41. Qxd5 {[%clk 0:01:03.1]} 41... Qd3 {[%clk 0:01:46]} 42.
Kf1 {[%clk 0:00:54.3]} 42... Qd1+ {[%clk 0:01:44.5]} 43. Be1 {[%clk 0:00:55.4]}
43... Qd3 {[%clk 0:01:40.2]} 44. Kf2 {[%clk 0:00:56.3]} 44... Kg6 {[%clk
0:01:39]} 45. f5+ {[%clk 0:00:50.5]} 45... Kg7 {[%clk 0:01:27.8]} 46. Nf4 {[%clk
0:00:49.4]} 46... Qc2+ {[%clk 0:01:26.2]} 47. Kf1 {[%clk 0:00:47.5]} 47... Qd1
{[%clk 0:01:22]} 48. Nh5+ {[%clk 0:00:47.2]} 48... Kf8 {[%clk 0:01:20.3]} 49.
Qd6+ {[%clk 0:00:41.7]} 49... Be7 {[%clk 0:01:20.3]} 50. Qb8+ {[%clk 0:00:42.5]}
1-0

[Event "*** Titled Tuesday Blitz"]
[Site "Chess.com"]
[Date "2018.11.06"]
[Round "1"]
[White "juniortay"]
[Black "champ2005"]
[Result "0-1"]
[WhiteElo "2398"]
[BlackElo "2758"]
[TimeControl "180+2"]
[EndTime "13:07:44 PST"]
[Termination "champ2005 won by resignation"]

1. e4 {[%clk 0:02:59.2]} 1... c5 {[%clk 0:03:01.1]} 2. Nf3 {[%clk 0:02:59.2]}
2... d6 {[%clk 0:03:02.3]} 3. d4 {[%clk 0:02:58.6]} 3... cxd4 {[%clk 0:03:04.2]}
4. Qxd4 {[%clk 0:02:59.7]} 4... a6 {[%clk 0:03:03.9]} 5. Be3 {[%clk 0:02:59.1]}
5... Nc6 {[%clk 0:03:04.2]} 6. Qb6 {[%clk 0:02:58.5]} 6... Qxb6 {[%clk
0:03:00.8]} 7. Bxb6 {[%clk 0:03:00.4]} 7... Nf6 {[%clk 0:03:01.4]} 8. Nc3 {[%clk
0:03:00.8]} 8... g6 {[%clk 0:02:58.8]} 9. O-O-O {[%clk 0:02:56.7]} 9... Bg7
{[%clk 0:02:58.8]} 10. e5 {[%clk 0:02:49.8]} 10... Nd7 {[%clk 0:02:47]} 11. Nd5
{[%clk 0:02:45.9]} 11... Nxb6 {[%clk 0:02:01.5]} 12. Nxb6 {[%clk 0:02:45.2]}
12... Rb8 {[%clk 0:02:02.4]} 13. exd6 {[%clk 0:02:46.3]} 13... exd6 {[%clk
0:02:02.6]} 14. Rxd6 {[%clk 0:02:37.9]} 14... O-O {[%clk 0:02:01.3]} 15. Nd7
{[%clk 0:02:09.3]} 15... Rd8 {[%clk 0:01:30.9]} 16. Bc4 {[%clk 0:00:52.5]} 16...
Rxd7 {[%clk 0:01:24.7]} 17. Rhd1 {[%clk 0:00:54.4]} 17... Rxd6 {[%clk 0:01:19]}
18. Rxd6 {[%clk 0:00:56.3]} 18... Bg4 {[%clk 0:01:01.5]} 19. Ng5 {[%clk
0:00:54.6]} 19... Ne5 {[%clk 0:00:55.4]} 20. Bb3 {[%clk 0:00:48.3]} 20... Bh6
{[%clk 0:00:51]} 21. f4 {[%clk 0:00:48.1]} 21... Bxg5 {[%clk 0:00:51.9]} 22.
fxg5 {[%clk 0:00:49]} 22... Re8 {[%clk 0:00:52.7]} 23. Kd2 {[%clk 0:00:41.7]}
23... Be6 {[%clk 0:00:52]} 24. h4 {[%clk 0:00:35.4]} 24... Nc4+ {[%clk
0:00:36.6]} 25. Bxc4 {[%clk 0:00:29.5]} 25... Bxc4 {[%clk 0:00:38.5]} 26. Kc3
{[%clk 0:00:31.2]} 26... Bb5 {[%clk 0:00:37.9]} 27. g4 {[%clk 0:00:27]} 27...
Bc6 {[%clk 0:00:34.8]} 28. h5 {[%clk 0:00:25.6]} 28... Kg7 {[%clk 0:00:32]} 29.
Kd4 {[%clk 0:00:22.9]} 29... Re4+ {[%clk 0:00:31.5]} 30. Kc5 {[%clk 0:00:24.1]}
30... Re5+ {[%clk 0:00:32.5]} 31. Kb6 {[%clk 0:00:24.2]} 31... Rxg5 {[%clk
0:00:33.3]} 32. hxg6 {[%clk 0:00:22.5]} 32... hxg6 {[%clk 0:00:34.6]} 33. Rd4
{[%clk 0:00:22.4]} 33... Rb5+ {[%clk 0:00:35]} 34. Kc7 {[%clk 0:00:22.9]} 34...
Rxb2 {[%clk 0:00:36.5]} 0-1

[Event "*** Titled Tuesday Blitz"]
[Site "Chess.com"]
[Date "2018.11.06"]
[Round "1"]
[White "armago"]
[Black "TomsKantans"]
[Result "0-1"]
[WhiteElo "2053"]
[BlackElo "2501"]
[TimeControl "180+2"]
[EndTime "13:07:46 PST"]
[Termination "TomsKantans won on time"]

1. d4 {[%clk 0:02:58.9]} 1... Nf6 {[%clk 0:02:53]} 2. c4 {[%clk 0:02:59]} 2...
e6 {[%clk 0:02:53.2]} 3. Nc3 {[%clk 0:02:59.6]} 3... Bb4 {[%clk 0:02:53.7]} 4.
e3 {[%clk 0:03:00]} 4... b6 {[%clk 0:02:54.7]} 5. Ne2 {[%clk 0:02:59]} 5... Ne4
{[%clk 0:02:55.4]} 6. Qc2 {[%clk 0:02:56.8]} 6... Bb7 {[%clk 0:02:55.5]} 7. a3
{[%clk 0:02:55.3]} 7... Bxc3+ {[%clk 0:02:55.7]} 8. Nxc3 {[%clk 0:02:55.9]} 8...
Nxc3 {[%clk 0:02:56.7]} 9. Qxc3 {[%clk 0:02:57.5]} 9... d6 {[%clk 0:02:57]} 10.
Bd3 {[%clk 0:02:44]} 10... Qg5 {[%clk 0:02:49.3]} 11. Rg1 {[%clk 0:02:31.9]}
11... Nd7 {[%clk 0:02:47.7]} 12. Bd2 {[%clk 0:02:28.8]} 12... O-O {[%clk
0:02:43.1]} 13. O-O-O {[%clk 0:02:25.2]} 13... Qe7 {[%clk 0:02:29.9]} 14. f3
{[%clk 0:01:35.2]} 14... f5 {[%clk 0:02:26.5]} 15. e4 {[%clk 0:01:27.5]} 15...
fxe4 {[%clk 0:02:27.1]} 16. fxe4 {[%clk 0:01:29.4]} 16... e5 {[%clk 0:02:24.8]}
17. d5 {[%clk 0:01:27.4]} 17... Rf7 {[%clk 0:02:23.2]} 18. Be3 {[%clk
0:01:19.6]} 18... Raf8 {[%clk 0:02:23.3]} 19. Qd2 {[%clk 0:01:15.2]} 19... Qh4
{[%clk 0:02:19.4]} 20. g3 {[%clk 0:01:14.3]} 20... Qh3 {[%clk 0:02:14.6]} 21.
Be2 {[%clk 0:00:17.8]} 21... Bc8 {[%clk 0:01:39.6]} 22. g4 {[%clk 0:00:16.4]}
22... Nf6 {[%clk 0:01:35.3]} 23. Bd3 {[%clk 0:00:13.1]} 23... Nxg4 {[%clk
0:01:32.5]} 24. Bg5 {[%clk 0:00:13.8]} 24... Rf2 {[%clk 0:01:31.8]} 25. Qc3
{[%clk 0:00:13.1]} 25... Nxh2 {[%clk 0:01:23]} 26. Be7 {[%clk 0:00:13.2]} 26...
R8f7 {[%clk 0:01:23.1]} 27. Bd8 {[%clk 0:00:13.8]} 27... Bg4 {[%clk 0:01:18.5]}
28. Rde1 {[%clk 0:00:13.3]} 28... Nf3 {[%clk 0:01:18.8]} 29. Rh1 {[%clk
0:00:13.3]} 29... Qg3 {[%clk 0:01:15.1]} 30. Ref1 {[%clk 0:00:13]} 30... Nd4
{[%clk 0:01:08.4]} 31. Rfg1 {[%clk 0:00:12.6]} 31... Qe3+ {[%clk 0:00:52.7]} 32.
Kb1 {[%clk 0:00:12.4]} 32... Be2 {[%clk 0:00:53.5]} 33. Bxe2 {[%clk 0:00:10.7]}
33... Qxc3 {[%clk 0:00:54.4]} 34. bxc3 {[%clk 0:00:09.7]} 34... Nxe2 {[%clk
0:00:55.4]} 35. Rg4 {[%clk 0:00:09.3]} 35... Nxc3+ {[%clk 0:00:55.4]} 0-1